Workbook

Sheet püstol ja võistkonnad
B1: PÜSTOL
B3: mehed | C3: sünd. | D3: võistkond | E3: I etapp 05-06.oktoober 2013 | N3: II etapp 8.detsember 2013 | W3: III etapp 4-5.jaanuar 2014 | AF3: IV etapp 2-3. veebruar 2014 | AO3: V etapp | AX3: KOKKU
B4: Nimi | E4: I | F4: II | G4: III | H4: IV | I4: kokku | J4: V | K4: VI | L4: kokku | N4: I | O4: II | P4: III | Q4: IV | R4: kokku | S4: V | T4: VI | U4: kokku | W4: I | X4: II | Y4: III | Z4: IV | AA4: kokku | AB4: V | AC4: VI | AD4: kokku | AF4: I | AG4: II | AH4: III | AI4: IV | AJ4: kokku | AK4: V | AL4: VI | AM4: kokku | AO4: I | AP4: II | AQ4: III | AR4: IV | AS4: kokku | AT4: V | AU4: VI | AV4: kokku
A5: 1 | B5: Andrus Rüütelmaa | C5: 1972 | D5: Käina | E5: 88 | F5: 92 | G5: 94 | H5: 91 | I5: =SUM(E5:H5) -> 365 | J5: 92 | K5: 94 | L5: =SUM(I5:K5) -> 551 | R5: =SUM(N5:Q5) -> 0 | U5: =SUM(R5:T5) -> 0 | W5: 92 | X5: 94 | Y5: 94 | Z5: 90 | AA5: =SUM(W5:Z5) -> 370 | AB5: 90 | AC5: 89 | AD5: =SUM(AA5:AC5) -> 549 | AF5: 88 | AG5: 90 | AH5: 96 | AI5: 89 | AJ5: =SUM(AF5:AI5) -> 363 | AK5: 87 | AL5: 90 | AM5: =SUM(AJ5:AL5) -> 540 | AO5: 90 | AP5: 88 | AQ5: 90 | AR5: 86 | AS5: =SUM(AO5:AR5) -> 354 | AT5: 89 | AU5: 91 | AV5: =SUM(AS5:AU5) -> 534 | AX5: =SUM(L5,U5,AD5,AM5,AV5)-MIN(L5,U5,AD5,AM5,AV5) -> 2174
A6: 2 | B6: Tiit Vannas | C6: 1973 | D6: Käina | E6: 78 | F6: 83 | G6: 83 | H6: 89 | I6: =SUM(E6:H6) -> 333 | J6: 87 | K6: 89 | L6: =SUM(I6:K6) -> 509 | N6: 87 | O6: 88 | P6: 90 | Q6: 86 | R6: =SUM(N6:Q6) -> 351 | S6: 85 | T6: 87 | U6: =SUM(R6:T6) -> 523 | W6: 84 | X6: 82 | Y6: 82 | Z6: 85 | AA6: =SUM(W6:Z6) -> 333 | AB6: 88 | AC6: 89 | AD6: =SUM(AA6:AC6) -> 510 | AF6: 85 | AG6: 90 | AH6: 87 | AI6: 88 | AJ6: =SUM(AF6:AI6) -> 350 | AK6: 85 | AL6: 91 | AM6: =SUM(AJ6:AL6) -> 526 | AO6: 92 | AP6: 85 | AQ6: 89 | AR6: 87 | AS6: =SUM(AO6:AR6) -> 353 | AT6: 90 | AU6: 86 | AV6: =SUM(AS6:AU6) -> 529 | AX6: =SUM(L6,U6,AD6,AM6,AV6)-MIN(L6,U6,AD6,AM6,AV6) -> 2088
A7: 3 | B7: Kalmar Tikerpuu | C7: 1966 | D7: Pühalepa | E7: 92 | F7: 80 | G7: 82 | H7: 81 | I7: =SUM(E7:H7) -> 335 | J7: 87 | K7: 87 | L7: =SUM(I7:K7) -> 509 | N7: 86 | O7: 84 | P7: 83 | Q7: 83 | R7: =SUM(N7:Q7) -> 336 | S7: 85 | T7: 87 | U7: =SUM(R7:T7) -> 508 | W7: 82 | X7: 89 | Y7: 86 | Z7: 88 | AA7: =SUM(W7:Z7) -> 345 | AB7: 82 | AC7: 88 | AD7: =SUM(AA7:AC7) -> 515 | AF7: 84 | AG7: 86 | AH7: 90 | AI7: 88 | AJ7: =SUM(AF7:AI7) -> 348 | AK7: 93 | AL7: 80 | AM7: =SUM(AJ7:AL7) -> 521 | AO7: 93 | AP7: 90 | AQ7: 80 | AR7: 90 | AS7: =SUM(AO7:AR7) -> 353 | AT7: 88 | AU7: 90 | AV7: =SUM(AS7:AU7) -> 531 | AX7: =SUM(L7,U7,AD7,AM7,AV7)-MIN(L7,U7,AD7,AM7,AV7) -> 2076
A8: 4 | B8: Valeri Tamme | C8: 1956 | D8: Jahimeeste Selts | E8: 84 | F8: 85 | G8: 79 | H8: 80 | I8: =SUM(E8:H8) -> 328 | J8: 79 | K8: 88 | L8: =SUM(I8:K8) -> 495 | N8: 81 | O8: 76 | P8: 80 | Q8: 84 | R8: =SUM(N8:Q8) -> 321 | S8: 86 | T8: 85 | U8: =SUM(R8:T8) -> 492 | W8: 81 | X8: 79 | Y8: 84 | Z8: 84 | AA8: =SUM(W8:Z8) -> 328 | AB8: 79 | AC8: 79 | AD8: =SUM(AA8:AC8) -> 486 | AF8: 85 | AG8: 88 | AH8: 87 | AI8: 83 | AJ8: =SUM(AF8:AI8) -> 343 | AK8: 86 | AL8: 85 | AM8: =SUM(AJ8:AL8) -> 514 | AO8: 85 | AP8: 81 | AQ8: 80 | AR8: 85 | AS8: =SUM(AO8:AR8) -> 331 | AT8: 80 | AU8: 76 | AV8: =SUM(AS8:AU8) -> 487 | AX8: =SUM(L8,U8,AD8,AM8,AV8)-MIN(L8,U8,AD8,AM8,AV8) -> 1988
A9: 5 | B9: Aimar Hansen | C9: 1964 | D9: Pühalepa | E9: 82 | F9: 81 | G9: 77 | H9: 82 | I9: =SUM(E9:H9) -> 322 | J9: 80 | K9: 83 | L9: =SUM(I9:K9) -> 485 | N9: 82 | O9: 84 | P9: 88 | Q9: 83 | R9: =SUM(N9:Q9) -> 337 | S9: 70 | T9: 70 | U9: =SUM(R9:T9) -> 477 | W9: 75 | X9: 84 | Y9: 71 | Z9: 81 | AA9: =SUM(W9:Z9) -> 311 | AB9: 88 | AC9: 71 | AD9: =SUM(AA9:AC9) -> 470 | AF9: 84 | AG9: 87 | AH9: 79 | AI9: 85 | AJ9: =SUM(AF9:AI9) -> 335 | AK9: 85 | AL9: 89 | AM9: =SUM(AJ9:AL9) -> 509 | AO9: 80 | AP9: 86 | AQ9: 88 | AR9: 82 | AS9: =SUM(AO9:AR9) -> 336 | AT9: 83 | AU9: 80 | AV9: =SUM(AS9:AU9) -> 499 | AX9: =SUM(L9,U9,AD9,AM9,AV9)-MIN(L9,U9,AD9,AM9,AV9) -> 1970
A10: 6 | B10: Rain Raidna | C10: 1970 | E10: 91 | F10: 90 | G10: 94 | H10: 93 | I10: =SUM(E10:H10) -> 368 | J10: 90 | K10: 96 | L10: =SUM(I10:K10) -> 554 | R10: =SUM(N10:Q10) -> 0 | U10: =SUM(R10:T10) -> 0 | AA10: =SUM(W10:Z10) -> 0 | AD10: =SUM(AA10:AC10) -> 0 | AJ10: =SUM(AF10:AI10) -> 0 | AM10: =SUM(AJ10:AL10) -> 0 | AS10: =SUM(AO10:AR10) -> 0 | AV10: =SUM(AS10:AU10) -> 0 | AX10: =SUM(L10,U10,AD10,AM10,AV10)-MIN(L10,U10,AD10,AM10,AV10) -> 554
A11: 7 | B11: Raoul Raidna | C11: 1973 | E11: 94 | F11: 92 | G11: 86 | H11: 84 | I11: =SUM(E11:H11) -> 356 | J11: 90 | K11: 93 | L11: =SUM(I11:K11) -> 539 | R11: =SUM(N11:Q11) -> 0 | U11: =SUM(R11:T11) -> 0 | AA11: =SUM(W11:Z11) -> 0 | AD11: =SUM(AA11:AC11) -> 0 | AJ11: =SUM(AF11:AI11) -> 0 | AM11: =SUM(AJ11:AL11) -> 0 | AS11: =SUM(AO11:AR11) -> 0 | AV11: =SUM(AS11:AU11) -> 0 | AX11: =SUM(L11,U11,AD11,AM11,AV11)-MIN(L11,U11,AD11,AM11,AV11) -> 539
AJ12: =SUM(AF12:AI12) -> 0 | AM12: =SUM(AJ12:AL12) -> 0 | AS12: =SUM(AO12:AR12) -> 0 | AV12: =SUM(AS12:AU12) -> 0
AJ13: 0 | AM13: 0 | AS13: 0 | AV13: 0
AJ14: 0 | AM14: 0 | AS14: 0 | AV14: 0
AJ15: 0 | AM15: 0 | AS15: 0 | AV15: 0
B17: naised
A18: 1 | B18: Kaire Laupa | C18: 1971 | D18: Käina | E18: 77 | F18: 72 | G18: 79 | H18: 70 | I18: =SUM(E18:H18) -> 298 | L18: =SUM(I18:K18) -> 298 | N18: 68 | O18: 78 | P18: 72 | Q18: 67 | R18: =SUM(N18:Q18) -> 285 | U18: =SUM(R18:T18) -> 285 | W18: 74 | X18: 89 | Y18: 85 | Z18: 79 | AA18: =SUM(W18:Z18) -> 327 | AD18: =SUM(AA18:AC18) -> 327 | AF18: 78 | AG18: 86 | AH18: 77 | AI18: 83 | AJ18: =SUM(AF18:AI18) -> 324 | AM18: =SUM(AJ18:AL18) -> 324 | AO18: 72 | AP18: 70 | AQ18: 80 | AR18: 66 | AS18: =SUM(AO18:AR18) -> 288 | AV18: =SUM(AS18:AU18) -> 288 | AX18: =SUM(L18,U18,AD18,AM18,AV18)-MIN(L18,U18,AD18,AM18,AV18) -> 1237
A19: 2 | B19: Aija Klinduhhova | C19: 1990 | D19: MäLK | E19: 71 | F19: 82 | G19: 90 | H19: 79 | I19: =SUM(E19:H19) -> 322 | L19: =SUM(I19:K19) -> 322 | U19: 0 | AD19: =SUM(AA19:AC19) -> 0 | AJ19: =SUM(AF19:AI19) -> 0 | AM19: =SUM(AJ19:AL19) -> 0 | AO19: 78 | AP19: 82 | AQ19: 84 | AR19: 76 | AS19: =SUM(AO19:AR19) -> 320 | AV19: =SUM(AS19:AU19) -> 320 | AX19: =SUM(L19,U19,AD19,AM19,AV19)-MIN(L19,U19,AD19,AM19,AV19) -> 642
A20: 3 | B20: Margot Nigumann | C20: 1972 | D20: MäLK | E20: 60 | F20: 76 | G20: 73 | H20: 79 | I20: =SUM(E20:H20) -> 288 | L20: =SUM(I20:K20) -> 288 | U20: =SUM(R20:T20) -> 0 | W20: 86 | X20: 83 | Y20: 90 | Z20: 85 | AA20: =SUM(W20:Z20) -> 344 | AD20: =SUM(AA20:AC20) -> 344 | AJ20: =SUM(AF20:AI20) -> 0 | AM20: =SUM(AJ20:AL20) -> 0 | AS20: =SUM(AO20:AR20) -> 0 | AV20: =SUM(AS20:AU20) -> 0 | AX20: =SUM(L20,U20,AD20,AM20,AV20)-MIN(L20,U20,AD20,AM20,AV20) -> 632
A21: 4 | B21: Liivi Hansen | C21: 1965 | D21: Pühalepa | AJ21: =SUM(AF21:AI21) -> 0 | AM21: =SUM(AJ21:AL21) -> 0 | AO21: 68 | AP21: 65 | AQ21: 69 | AR21: 75 | AS21: =SUM(AO21:AR21) -> 277 | AV21: =SUM(AS21:AU21) -> 277 | AX21: =SUM(L21,U21,AD21,AM21,AV21)-MIN(L21,U21,AD21,AM21,AV21) -> 277
B25: VÕISTKONNAD
E26: I | F26: II | G26: III | L26: kokku | N26: I | O26: II | P26: III | U26: kokku | W26: I | X26: II | Y26: III | AD26: kokku | AF26: I | AG26: II | AH26: III | AM26: kokku | AO26: I | AP26: II | AQ26: III | AV26: kokku
A27: 1 | B27: MäLK | E27: 368 | F27: 362 | G27: 361 | L27: =SUM(E27:G27) -> 1091 | U27: =SUM(N27:P27) -> 0 | W27: 377 | X27: 367 | Y27: 364 | AD27: =SUM(W27:Y27) -> 1108 | AF27: 383 | AG27: 382 | AH27: 364 | AM27: =SUM(AF27:AH27) -> 1129 | AO27: 383 | AP27: 378 | AQ27: 372 | AV27: =SUM(AO27:AQ27) -> 1133 | AX27: =SUM(L27,U27,AD27,AM27,AV27)-MIN(L27,U27,AD27,AM27,AV27) -> 4461
A28: 2 | B28: PÜHALEPA | E28: 362 | F28: 358 | G28: 347 | L28: =SUM(E28:G28) -> 1067 | N28: 366 | O28: 363 | P28: 361 | U28: =SUM(N28:P28) -> 1090 | W28: 374 | X28: 357 | Y28: 343 | AD28: =SUM(W28:Y28) -> 1074 | AF28: 363 | AG28: 362 | AH28: 350 | AM28: =SUM(AF28:AH28) -> 1075 | AO28: 367 | AP28: 363 | AQ28: 359 | AV28: =SUM(AO28:AQ28) -> 1089 | AX28: =SUM(L28,U28,AD28,AM28,AV28)-MIN(L28,U28,AD28,AM28,AV28) -> 4328
A29: 3 | B29: JAHIMEESTE SELTS | E29: 370 | F29: 363 | G29: 340 | L29: =SUM(E29:G29) -> 1073 | N29: 370 | O29: 336 | U29: =SUM(N29:P29) -> 706 | W29: 373 | X29: 364 | Y29: 328 | AD29: =SUM(W29:Y29) -> 1065 | AF29: 374 | AG29: 353 | AH29: 331 | AM29: =SUM(AF29:AH29) -> 1058 | AO29: 368 | AP29: 353 | AQ29: 345 | AV29: =SUM(AO29:AQ29) -> 1066 | AX29: =SUM(L29,U29,AD29,AM29,AV29)-MIN(L29,U29,AD29,AM29,AV29) -> 4262
A30: 4 | B30: KÄINA | E30: 365 | F30: 333 | G30: 298 | L30: =SUM(E30:G30) -> 996 | N30: 351 | O30: 285 | U30: =SUM(N30:P30) -> 636 | W30: 370 | X30: 333 | Y30: 327 | AD30: =SUM(W30:Y30) -> 1030 | AF30: 363 | AG30: 350 | AH30: 324 | AM30: =SUM(AF30:AH30) -> 1037 | AO30: 354 | AP30: 353 | AQ30: 288 | AV30: =SUM(AO30:AQ30) -> 995 | AX30: =SUM(L30,U30,AD30,AM30,AV30)-MIN(L30,U30,AD30,AM30,AV30) -> 4058

Sheet püss
E2: Hiiumaa KV 2013-2014
AX3: etappid kokku
E4: I etapp 05-06.oktoober 2013 | N4: II etapp 8.detsember 2013 | W4: III etapp 4-5.jaanuar 2014 | AF4: IV etapp 2-3.veebruar 2014 | AO4: V etapp
B5: mehed | C5: sünd. | D5: Võistkond | E5: I | F5: II | G5: III | H5: IV | I5: kokku | J5: V | K5: VI | L5: kokku | N5: I | O5: II | P5: III | Q5: IV | R5: kokku | S5: V | T5: VI | U5: kokku | W5: I | X5: II | Y5: III | Z5: IV | AA5: kokku | AB5: V | AC5: VI | AD5: kokku | AF5: I | AG5: II | AH5: III | AI5: IV | AJ5: kokku | AK5: V | AL5: VI | AM5: kokku | AO5: I | AP5: II | AQ5: III | AR5: IV | AS5: kokku | AT5: V | AU5: VI | AV5: kokku
A6: 1 | B6: Kaur Laurimaa | C6: 1996 | D6: MäLK | E6: 90 | F6: 87 | G6: 93 | H6: 92 | I6: =SUM(E6:H6) -> 362 | J6: 87 | K6: 95 | L6: =SUM(I6:K6) -> 544 | R6: =SUM(N6:Q6) -> 0 | U6: =SUM(R6:T6) -> 0 | W6: 95 | X6: 96 | Y6: 97 | Z6: 89 | AA6: =SUM(W6:Z6) -> 377 | AB6: 93 | AC6: 94 | AD6: =SUM(AA6:AC6) -> 564 | AF6: 96 | AG6: 95 | AH6: 95 | AI6: 96 | AJ6: =SUM(AF6:AI6) -> 382 | AK6: 94 | AL6: 91 | AM6: =SUM(AJ6:AL6) -> 567 | AO6: 93 | AP6: 96 | AQ6: 97 | AR6: 92 | AS6: =SUM(AO6:AR6) -> 378 | AT6: 96 | AU6: 93 | AV6: =SUM(AS6:AU6) -> 567 | AX6: =SUM(L6,U6,AD6,AM6,AV6)-MIN(L6,U6,AD6,AM6,AV6) -> 2242
A7: 2 | B7: Märt Rajaveer | C7: 1978 | D7: Jahimeeste Selts | E7: 93 | F7: 91 | G7: 93 | H7: 93 | I7: =SUM(E7:H7) -> 370 | J7: 97 | K7: 93 | L7: =SUM(I7:K7) -> 560 | R7: =SUM(N7:Q7) -> 0 | U7: =SUM(R7:T7) -> 0 | W7: 97 | X7: 93 | Y7: 94 | Z7: 89 | AA7: =SUM(W7:Z7) -> 373 | AB7: 91 | AC7: 92 | AD7: =SUM(AA7:AC7) -> 556 | AF7: 96 | AG7: 95 | AH7: 91 | AI7: 92 | AJ7: =SUM(AF7:AI7) -> 374 | AK7: 95 | AL7: 93 | AM7: =SUM(AJ7:AL7) -> 562 | AO7: 91 | AP7: 92 | AQ7: 94 | AR7: 91 | AS7: =SUM(AO7:AR7) -> 368 | AT7: 94 | AU7: 92 | AV7: =SUM(AS7:AU7) -> 554 | AX7: =SUM(L7,U7,AD7,AM7,AV7)-MIN(L7,U7,AD7,AM7,AV7) -> 2232
A8: 3 | B8: Kalmar Tikerpuu | C8: 1966 | D8: Pühalepa | E8: 89 | F8: 92 | G8: 89 | H8: 92 | I8: =SUM(E8:H8) -> 362 | J8: 94 | K8: 88 | L8: =SUM(I8:K8) -> 544 | N8: 92 | O8: 92 | P8: 88 | Q8: 94 | R8: =SUM(N8:Q8) -> 366 | S8: 95 | T8: 91 | U8: =SUM(R8:T8) -> 552 | W8: 98 | X8: 90 | Y8: 94 | Z8: 92 | AA8: =SUM(W8:Z8) -> 374 | AB8: 92 | AC8: 95 | AD8: =SUM(AA8:AC8) -> 561 | AF8: 87 | AG8: 90 | AH8: 94 | AI8: 91 | AJ8: =SUM(AF8:AI8) -> 362 | AK8: 90 | AL8: 89 | AM8: =SUM(AJ8:AL8) -> 541 | AO8: 89 | AP8: 94 | AQ8: 89 | AR8: 95 | AS8: =SUM(AO8:AR8) -> 367 | AT8: 92 | AU8: 90 | AV8: =SUM(AS8:AU8) -> 549 | AX8: =SUM(L8,U8,AD8,AM8,AV8)-MIN(L8,U8,AD8,AM8,AV8) -> 2206
A9: 4 | B9: Valeri Tamme | C9: 1956 | D9: Jahimeeste Selts | E9: 86 | F9: 93 | G9: 90 | H9: 94 | I9: =SUM(E9:H9) -> 363 | J9: 94 | K9: 90 | L9: =SUM(I9:K9) -> 547 | N9: 90 | O9: 88 | P9: 95 | Q9: 97 | R9: =SUM(N9:Q9) -> 370 | S9: 93 | T9: 92 | U9: =SUM(R9:T9) -> 555 | W9: 93 | X9: 93 | Y9: 86 | Z9: 92 | AA9: =SUM(W9:Z9) -> 364 | AB9: 94 | AC9: 94 | AD9: =SUM(AA9:AC9) -> 552 | AF9: 93 | AG9: 86 | AH9: 87 | AI9: 87 | AJ9: =SUM(AF9:AI9) -> 353 | AK9: 88 | AL9: 89 | AM9: =SUM(AJ9:AL9) -> 530 | AO9: 92 | AP9: 85 | AQ9: 88 | AR9: 88 | AS9: =SUM(AO9:AR9) -> 353 | AT9: 89 | AU9: 94 | AV9: =SUM(AS9:AU9) -> 536 | AX9: =SUM(L9,U9,AD9,AM9,AV9)-MIN(L9,U9,AD9,AM9,AV9) -> 2190
A10: 5 | B10: Jüri Kilvits | C10: 1939 | D10: MäLK | E10: 89 | F10: 95 | G10: 93 | H10: 91 | I10: =SUM(E10:H10) -> 368 | J10: 95 | K10: 91 | L10: =SUM(I10:K10) -> 554 | R10: =SUM(N10:Q10) -> 0 | U10: =SUM(R10:T10) -> 0 | W10: 86 | X10: 89 | Y10: 91 | Z10: 93 | AA10: =SUM(W10:Z10) -> 359 | AB10: 89 | AC10: 90 | AD10: =SUM(AA10:AC10) -> 538 | AF10: 93 | AG10: 91 | AH10: 86 | AI10: 94 | AJ10: =SUM(AF10:AI10) -> 364 | AK10: 89 | AL10: 91 | AM10: =SUM(AJ10:AL10) -> 544 | AO10: 91 | AP10: 91 | AQ10: 94 | AR10: 96 | AS10: =SUM(AO10:AR10) -> 372 | AT10: 88 | AU10: 91 | AV10: =SUM(AS10:AU10) -> 551 | AX10: =SUM(L10,U10,AD10,AM10,AV10)-MIN(L10,U10,AD10,AM10,AV10) -> 2187
A11: 6 | B11: Neeme Virveste | C11: 1971 | E11: 86 | F11: 95 | G11: 91 | H11: 88 | I11: =SUM(E11:H11) -> 360 | J11: 89 | K11: 92 | L11: =SUM(I11:K11) -> 541 | N11: 88 | O11: 91 | P11: 88 | Q11: 90 | R11: =SUM(N11:Q11) -> 357 | S11: 87 | T11: 85 | U11: =SUM(R11:T11) -> 529 | W11: 94 | X11: 93 | Y11: 91 | Z11: 93 | AA11: =SUM(W11:Z11) -> 371 | AB11: 87 | AC11: 85 | AD11: =SUM(AA11:AC11) -> 543 | AF11: 91 | AG11: 83 | AH11: 91 | AI11: 89 | AJ11: =SUM(AF11:AI11) -> 354 | AK11: 85 | AL11: 84 | AM11: =SUM(AJ11:AL11) -> 523 | AO11: 85 | AP11: 89 | AQ11: 91 | AR11: 94 | AS11: =SUM(AO11:AR11) -> 359 | AT11: 88 | AU11: 87 | AV11: =SUM(AS11:AU11) -> 534 | AX11: =SUM(L11,U11,AD11,AM11,AV11)-MIN(L11,U11,AD11,AM11,AV11) -> 2147
A12: 7 | B12: Jarko Seema | C12: 1997 | E12: 86 | F12: 90 | G12: 95 | H12: 94 | I12: =SUM(E12:H12) -> 365 | J12: 91 | K12: 94 | L12: =SUM(I12:K12) -> 550 | N12: 87 | O12: 94 | P12: 82 | Q12: 82 | R12: =SUM(N12:Q12) -> 345 | S12: 86 | T12: 87 | U12: =SUM(R12:T12) -> 518 | W12: 83 | X12: 84 | Y12: 83 | Z12: 84 | AA12: =SUM(W12:Z12) -> 334 | AB12: 86 | AC12: 85 | AD12: =SUM(AA12:AC12) -> 505 | AF12: 92 | AG12: 94 | AH12: 87 | AI12: 93 | AJ12: =SUM(AF12:AI12) -> 366 | AK12: 84 | AL12: 88 | AM12: =SUM(AJ12:AL12) -> 538 | AO12: 91 | AP12: 88 | AQ12: 85 | AR12: 88 | AS12: =SUM(AO12:AR12) -> 352 | AT12: 92 | AU12: 92 | AV12: =SUM(AS12:AU12) -> 536 | AX12: =SUM(L12,U12,AD12,AM12,AV12)-MIN(L12,U12,AD12,AM12,AV12) -> 2142
A13: 8 | B13: Liivo Valgma | C13: 1975 | E13: 86 | F13: 85 | G13: 91 | H13: 86 | I13: =SUM(E13:H13) -> 348 | J13: 88 | K13: 82 | L13: =SUM(I13:K13) -> 518 | R13: =SUM(N13:Q13) -> 0 | U13: =SUM(R13:T13) -> 0 | W13: 83 | X13: 82 | Y13: 89 | Z13: 91 | AA13: =SUM(W13:Z13) -> 345 | AB13: 81 | AC13: 91 | AD13: =SUM(AA13:AC13) -> 517 | AF13: 92 | AG13: 93 | AH13: 87 | AI13: 89 | AJ13: =SUM(AF13:AI13) -> 361 | AK13: 91 | AL13: 92 | AM13: =SUM(AJ13:AL13) -> 544 | AO13: 90 | AP13: 84 | AQ13: 91 | AR13: 90 | AS13: =SUM(AO13:AR13) -> 355 | AT13: 83 | AU13: 92 | AV13: =SUM(AS13:AU13) -> 530 | AX13: =SUM(L13,U13,AD13,AM13,AV13)-MIN(L13,U13,AD13,AM13,AV13) -> 2109
A14: 9 | B14: Urmas Keskla | C14: 1970 | D14: Jahimeeste Selts | E14: 84 | F14: 84 | G14: 92 | H14: 80 | I14: =SUM(E14:H14) -> 340 | J14: 88 | K14: 87 | L14: =SUM(I14:K14) -> 515 | N14: 86 | O14: 85 | P14: 85 | Q14: 80 | R14: =SUM(N14:Q14) -> 336 | S14: 80 | T14: 84 | U14: =SUM(R14:T14) -> 500 | W14: 83 | X14: 83 | Y14: 81 | Z14: 81 | AA14: =SUM(W14:Z14) -> 328 | AB14: 91 | AC14: 88 | AD14: =SUM(AA14:AC14) -> 507 | AF14: 84 | AG14: 80 | AH14: 84 | AI14: 83 | AJ14: =SUM(AF14:AI14) -> 331 | AK14: 87 | AL14: 80 | AM14: =SUM(AJ14:AL14) -> 498 | AO14: 89 | AP14: 86 | AQ14: 88 | AR14: 82 | AS14: =SUM(AO14:AR14) -> 345 | AT14: 88 | AU14: 78 | AV14: =SUM(AS14:AU14) -> 511 | AX14: =SUM(L14,U14,AD14,AM14,AV14)-MIN(L14,U14,AD14,AM14,AV14) -> 2033
A15: 10 | B15: Aare-Villu Kattel | C15: 1969 | D15: Pühalepa | E15: 68 | F15: 71 | G15: 71 | H15: 81 | I15: =SUM(E15:H15) -> 291 | J15: 81 | K15: 80 | L15: =SUM(I15:K15) -> 452 | N15: 91 | O15: 73 | P15: 92 | Q15: 80 | R15: =SUM(N15:Q15) -> 336 | S15: 80 | T15: 77 | U15: =SUM(R15:T15) -> 493 | W15: 81 | X15: 81 | Y15: 80 | Z15: 80 | AA15: =SUM(W15:Z15) -> 322 | AB15: 74 | AC15: 65 | AD15: =SUM(AA15:AC15) -> 461 | AF15: 89 | AG15: 83 | AH15: 86 | AI15: 82 | AJ15: =SUM(AF15:AI15) -> 340 | AK15: 83 | AL15: 84 | AM15: =SUM(AJ15:AL15) -> 507 | AO15: 84 | AP15: 72 | AQ15: 88 | AR15: 86 | AS15: =SUM(AO15:AR15) -> 330 | AT15: 83 | AU15: 87 | AV15: =SUM(AS15:AU15) -> 500 | AX15: =SUM(L15,U15,AD15,AM15,AV15)-MIN(L15,U15,AD15,AM15,AV15) -> 1961
A16: 11 | B16: Andrus Rüütelmaa | C16: 1972 | D16: Käina | E16: 92 | F16: 84 | G16: 94 | H16: 95 | I16: =SUM(E16:H16) -> 365 | J16: 88 | K16: 89 | L16: =SUM(I16:K16) -> 542 | R16: =SUM(N16:Q16) -> 0 | U16: =SUM(R16:T16) -> 0 | AA16: =SUM(W16:Z16) -> 0 | AD16: =SUM(AA16:AC16) -> 0 | AJ16: =SUM(AF16:AI16) -> 0 | AM16: =SUM(AJ16:AL16) -> 0 | AS16: =SUM(AO16:AR16) -> 0 | AV16: =SUM(AS16:AU16) -> 0 | AX16: =SUM(L16,U16,AD16,AM16,AV16)-MIN(L16,U16,AD16,AM16,AV16) -> 542
R19: =SUM(N19:Q19) -> 0 | U19: =SUM(R19:T19) -> 0 | AA19: =SUM(W19:Z19) -> 0 | AD19: =SUM(AA19:AC19) -> 0 | AJ19: =SUM(AF19:AI19) -> 0 | AM19: =SUM(AJ19:AL19) -> 0 | AS19: =SUM(AO19:AR19) -> 0 | AV19: =SUM(AS19:AU19) -> 0
B20: poisid toelt
A21: 1 | B21: Risto Tikerpuu | C21: 2004 | E21: 96 | F21: 95 | G21: 97 | H21: 95 | I21: =SUM(E21:H21) -> 383 | L21: =SUM(I21:K21) -> 383 | N21: 90 | O21: 98 | P21: 91 | Q21: 94 | R21: =SUM(N21:Q21) -> 373 | U21: =SUM(R21:T21) -> 373 | W21: 93 | X21: 94 | Y21: 97 | Z21: 97 | AA21: 381 | AD21: 381 | AF21: 91 | AG21: 94 | AH21: 98 | AI21: 96 | AJ21: 379 | AM21: 379 | AS21: 0 | AV21: 0 | AX21: =SUM(L21,U21,AD21,AM21,AV21)-MIN(L21,U21,AD21,AM21,AV21) -> 1516
A22: 2 | B22: Pärni Kuuse | C22: 2002 | E22: 93 | F22: 89 | G22: 91 | H22: 94 | I22: 367 | L22: 367 | N22: 95 | O22: 93 | P22: 95 | Q22: 95 | R22: =SUM(N22:Q22) -> 378 | U22: =SUM(R22:T22) -> 378 | AA22: 0 | AD22: 0 | AJ22: 0 | AM22: 0 | AS22: 0 | AV22: 0 | AX22: 745
AD23: 0 | AJ23: 0 | AM23: 0 | AS23: 0 | AV23: 0
B25: naised
A26: 1 | B26: Stella Salm | C26: 1998 | D26: MäLK | E26: 86 | F26: 92 | G26: 93 | H26: 90 | I26: =SUM(E26:H26) -> 361 | L26: =SUM(I26:K26) -> 361 | R26: =SUM(N26:Q26) -> 0 | U26: =SUM(R26:T26) -> 0 | W26: 87 | X26: 96 | Y26: 95 | Z26: 89 | AA26: =SUM(W26:Z26) -> 367 | AD26: =SUM(AA26:AC26) -> 367 | AF26: 96 | AG26: 93 | AH26: 98 | AI26: 96 | AJ26: =SUM(AF26:AI26) -> 383 | AM26: =SUM(AJ26:AL26) -> 383 | AO26: 96 | AP26: 95 | AQ26: 95 | AR26: 97 | AS26: =SUM(AO26:AR26) -> 383 | AV26: =SUM(AS26:AU26) -> 383 | AX26: =SUM(L26,U26,AD26,AM26,AV26)-MIN(L26,U26,AD26,AM26,AV26) -> 1494
A27: 2 | B27: Liivi Hansen | C27: 1965 | D27: Pühalepa | E27: 86 | F27: 88 | G27: 88 | H27: 85 | I27: =SUM(E27:H27) -> 347 | L27: =SUM(I27:K27) -> 347 | N27: 87 | O27: 88 | P27: 93 | Q27: 93 | R27: =SUM(N27:Q27) -> 361 | U27: =SUM(R27:T27) -> 361 | W27: 85 | X27: 92 | Y27: 88 | Z27: 92 | AA27: =SUM(W27:Z27) -> 357 | AD27: =SUM(AA27:AC27) -> 357 | AF27: 90 | AG27: 90 | AH27: 93 | AI27: 90 | AJ27: =SUM(AF27:AI27) -> 363 | AM27: =SUM(AJ27:AL27) -> 363 | AO27: 91 | AP27: 85 | AQ27: 94 | AR27: 93 | AS27: =SUM(AO27:AR27) -> 363 | AV27: =SUM(AS27:AU27) -> 363 | AX27: =SUM(L27,U27,AD27,AM27,AV27)-MIN(L27,U27,AD27,AM27,AV27) -> 1444
A28: 3 | B28: Riina Tikerpuu | C28: 1969 | D28: Pühalepa | E28: 82 | F28: 96 | G28: 90 | H28: 90 | I28: =SUM(E28:H28) -> 358 | L28: =SUM(I28:K28) -> 358 | N28: 87 | O28: 91 | P28: 94 | Q28: 91 | R28: =SUM(N28:Q28) -> 363 | U28: =SUM(R28:T28) -> 363 | W28: 83 | X28: 86 | Y28: 84 | Z28: 90 | AA28: =SUM(W28:Z28) -> 343 | AD28: =SUM(AA28:AC28) -> 343 | AF28: 85 | AG28: 83 | AH28: 91 | AI28: 91 | AJ28: =SUM(AF28:AI28) -> 350 | AM28: =SUM(AJ28:AL28) -> 350 | AO28: 92 | AP28: 86 | AQ28: 89 | AR28: 92 | AS28: =SUM(AO28:AR28) -> 359 | AV28: =SUM(AS28:AU28) -> 359 | AX28: =SUM(L28,U28,AD28,AM28,AV28)-MIN(L28,U28,AD28,AM28,AV28) -> 1430
A29: 4 | B29: Annika Koppel | C29: 1969 | D29: Pühalepa | I29: =SUM(E29:H29) -> 0 | L29: =SUM(I29:K29) -> 0 | N29: 80 | O29: 80 | P29: 82 | Q29: 82 | R29: =SUM(N29:Q29) -> 324 | U29: =SUM(R29:T29) -> 324 | W29: 85 | X29: 83 | Y29: 81 | Z29: 80 | AA29: =SUM(W29:Z29) -> 329 | AD29: =SUM(AA29:AC29) -> 329 | AF29: 83 | AG29: 88 | AH29: 75 | AI29: 79 | AJ29: =SUM(AF29:AI29) -> 325 | AM29: =SUM(AJ29:AL29) -> 325 | AO29: 81 | AP29: 85 | AQ29: 82 | AR29: 82 | AS29: =SUM(AO29:AR29) -> 330 | AV29: =SUM(AS29:AU29) -> 330 | AX29: =SUM(L29,U29,AD29,AM29,AV29)-MIN(L29,U29,AD29,AM29,AV29) -> 1308
A30: 5 | B30: Margot Nigumann | C30: 1972 | D30: MäLK | E30: 87 | F30: 87 | G30: 90 | H30: 94 | I30: =SUM(E30:H30) -> 358 | L30: =SUM(I30:K30) -> 358 | R30: =SUM(N30:Q30) -> 0 | U30: =SUM(R30:T30) -> 0 | W30: 91 | X30: 88 | Y30: 95 | Z30: 90 | AA30: =SUM(W30:Z30) -> 364 | AD30: =SUM(AA30:AC30) -> 364 | AJ30: =SUM(AF30:AI30) -> 0 | AM30: =SUM(AJ30:AL30) -> 0 | AS30: =SUM(AO30:AR30) -> 0 | AV30: =SUM(AS30:AU30) -> 0 | AX30: =SUM(L30,U30,AD30,AM30,AV30)-MIN(L30,U30,AD30,AM30,AV30) -> 722
A31: 6 | B31: Aija Klinduhhova | C31: 1990 | D31: MäLK | E31: 90 | F31: 82 | G31: 78 | H31: 84 | I31: =SUM(E31:H31) -> 334 | L31: =SUM(I31:K31) -> 334 | R31: =SUM(N31:Q31) -> 0 | U31: =SUM(R31:T31) -> 0 | AA31: =SUM(W31:Z31) -> 0 | AD31: =SUM(AA31:AC31) -> 0 | AJ31: =SUM(AF31:AI31) -> 0 | AM31: =SUM(AJ31:AL31) -> 0 | AS31: =SUM(AO31:AR31) -> 0 | AV31: =SUM(AS31:AU31) -> 0 | AX31: =SUM(L31,U31,AD31,AM31,AV31)-MIN(L31,U31,AD31,AM31,AV31) -> 334
